[Event "Super United Croatia GCT Rapid 2022"]
[Site "Zagreb"]
[Date "2022.07.21"]
[Round "6.4"]
[White "Carlsen, Magnus"]
[Black "Dominguez Perez, Leinier"]
[Result "1/2-1/2"]
[ECO "A36"]
[WhiteElo "2864"]
[BlackElo "2754"]
[Annotator "TA"]
[PlyCount "102"]
[EventDate "2022.07.20"]
[EventType "tourn"]
[EventCountry "CRO"]
[SourceTitle "playchess.com"]
[Source "ChessBase"]
[SourceQuality "1"]
[TimeControl "1500+10"]

{[%evp 11,102,2,14,-9,-11,-16,18,18,6,15,4,0,8,22,46,14,54,47,58,29,93,100,79,74,72,70,114,111,116,116,108,118,159,150,183,187,163,189,196,170,162,164,316,316,329,310,299,299,297,217,400,43,32,12,14,14,15,15,8,0,0,0,17,21,31,28,29,28,31,0,0,0,0,0,0,0,0,0,0,0,0,0,0,0,0,0,0,0,0,0,0,0,0]} 1. g3 {[%emt 0:00:16]} c5 {[%emt 0:00:29]} 2. Bg2 {[%emt 0:00:03]} Nc6 {[%emt 0:00:04]} 3. c4 {[%emt 0:00:47]} g6 {[%emt 0:00:13]} 4. Nc3 {[%emt 0:00:11]} Bg7 {[%emt 0:00:03]} 5. b3 {[%emt 0:00:21]} Nf6 {[%emt 0:01:34]} 6. Bb2 {[%emt 0:00:35]} O-O {[%emt 0:00:05]} 7. Nh3 {[%emt 0:02:29] A36: Symmetrical English vs ...g6: 4 Bg2 Bg7.} d5 {[%emt 0:00:33] [#]} 8. cxd5 $146 {[%emt 0:00:03] [#]} ({Predecessor:} 8. Nxd5 Bxh3 9. Bxh3 Nxd5 10. Bxg7 Kxg7 11. cxd5 Qxd5 12. O-O Rad8 13. d3 Nd4 14. Bg2 Qd7 {1-0 (48) Stikovic,D (2163)-Radisavljevic,D (2172) Backa Palanka 2021}) 8... Nxd5 {[%emt 0:00:08]} 9. Bxd5 {[%emt 0:00:10]} Bxh3 {[%emt 0:00:04]} 10. Bxc6 {[%emt 0:00:02]} bxc6 {[%emt 0:00:02]} 11. Na4 {[%emt 0:00:51]} Qd5 {[%emt 0:10:36][%cal Rd5h1]} 12. Rg1 {[%emt 0:00:02]} Bd4 {[%emt 0:00:04]} 13. Rc1 {[%emt 0:01:56]} Bg4 {[%emt 0:01:22]} 14. Bxd4 {[%emt 0:00:35]} cxd4 {[%emt 0:00:02]} (14... Qxd4 15. Rc4 (15. Rxc5 h5 $16) 15... Qd7 16. Nxc5 $16) 15. d3 {[%emt 0:00:24]} c5 {[%emt 0:00:31]} (15... Qd6 $11 {keeps the balance.}) 16. f3 $16 {[%emt 0:00:23]} (16. Nxc5 Rfc8 17. b4 a5 $11) (16. Rxc5 Qe6 $11) 16... Bd7 {[%emt 0:00:11]} 17. Nxc5 {[%emt 0:00:55]} Rfc8 {[%emt 0:00:24]} 18. Nxd7 {[%emt 0:02:26][%cal Oc1c4]} Qxd7 {[%emt 0:00:12]} 19. Rc4 {[%emt 0:01:18]} e5 {[%emt 0:02:09]} 20. Kf2 {[%emt 0:00:35]} Qh3 {[%emt 0:01:14]} 21. Rh1 {[%emt 0:00:12]} a5 {[%emt 0:01:49]} 22. Qd2 {[%emt 0:00:27]} a4 {[%emt 0:01:32]} 23. Rxa4 {[%emt 0:02:24]} Rxa4 {[%emt 0:00:14]} 24. bxa4 $18 {[%emt 0:00:01][%mdl 4096] Endgame KQR-KQR} Ra8 {[%emt 0:01:34]} 25. a5 {[%emt 0:00:33]} Kg7 {[%emt 0:01:08]} 26. Qb4 {[%emt 0:00:08]} h5 $2 {[%emt 0:01:04]} (26... Qh6) 27. Qb5 {[%emt 0:02:03]} Qe6 {[%emt 0:01:06]} 28. Rc1 {[%emt 0:00:34]} h4 {[%emt 0:00:08]} 29. Rc6 {[%emt 0:00:36]} ({Resist} 29. gxh4 $6 Rh8 $18) 29... Qf5 {[%emt 0:00:56]} 30. f4 {[%emt 0:01:26]} Qh3 $2 {[%emt 0:00:15] [#]} (30... Ra7 {was necessary.} 31. Qxe5+ Qxe5 32. fxe5 hxg3+ 33. hxg3 (33. Kxg3 Rxa5 34. e6 Rxa2 $16) 33... Rxa5) 31. Qxe5+ $2 {[%emt 0:00:03]} ({White must play} 31. Rxg6+ $1 $18 {[%mdl 512]} Kxg6 32. Qc6+ Kh7 33. Qe4+ Kg7 34. Qxa8 Qxh2+ 35. Qg2 hxg3+ 36. Kf1) 31... Kh7 $1 $14 {[%emt 0:00:17]} 32. Ke1 {[%emt 0:03:55]} ({Not} 32. Qxd4 $2 Qxh2+ 33. Ke1 Qh1+ 34. Kf2 Qxc6 35. gxh4 Rxa5 $19) 32... Qxh2 {[%emt 0:00:01] Hoping for ...Qh1+.} 33. Rc7 {[%emt 0:00:25]} Qxg3+ {[%emt 0:00:16]} 34. Kd2 {[%emt 0:00:01]} Kg8 {[%emt 0:00:17]} 35. Qxd4 {[%emt 0:01:05] Threatens to win with Qc4.} h3 {[%emt 0:00:08] Strongly threatening ...Re8.} 36. Qe4 {[%emt 0:01:17] Against Re8} Rf8 {[%emt 0:00:10]} (36... Kg7 $5) 37. a6 {[%emt 0:00:38] a7 is the strong threat.} h2 {[%emt 0:00:03]} 38. a7 {[%emt 0:00:46]} h1=Q {[%emt 0:00:20]} 39. Qxh1 {[%emt 0:00:02] Rc4 would kill now. Dancing on a razor blade.} Qxf4+ {[%emt 0:00:01]} 40. Kd1 {[%emt 0:00:20]} (40. e3 $5 {[%cal Re3f4]} Qxc7 41. a8=Q Rxa8 42. Qxa8+ Kh7 43. Qh1+ Kg8 44. Qa8+ Kh7 45. Qh1+ Kg8 46. Qa8+ $16) 40... Qa4+ {[%emt 0:00:08] The position is equal.} 41. Ke1 {[%emt 0:00:09]} Qa5+ {[%emt 0:00:20]} 42. Kf1 {[%emt 0:00:11]} Qxc7 {[%emt 0:00:10]} 43. a8=Q {[%emt 0:00:03]} Qc1+ $1 {[%emt 0:00:02]} ({Don't play} 43... Rxa8 44. Qxa8+ Kg7 45. Qe4 $16) 44. Kf2 {[%emt 0:00:01]} Qc5+ {[%emt 0:00:02]} 45. e3 {[%emt 0:00:21]} Qc2+ {[%emt 0:00:10]} 46. Kg3 {[%emt 0:00:02]} Qc7+ {[%emt 0:00:02]} 47. Kf2 {[%emt 0:00:32]} Qc2+ {[%emt 0:00:08]} 48. Kg1 {[%emt 0:00:07]} Qc1+ {[%emt 0:00:15]} 49. Kh2 {[%emt 0:00:02]} Qc7+ {[%emt 0:00:02]} 50. Kh3 {[%emt 0:00:06]} Qd7+ {[%emt 0:00:05]} 51. Kg3 {[%emt 0:00:13]} Qc7+ {[%emt 0:00:04] Blacks defense is rewarded with a draw.  Weighted Error Value: White=0.16 (very precise) /Black=0.14 (very precise)} 1/2-1/2

[Event "Super United Croatia GCT Rapid 2022"]
[Site "Zagreb"]
[Date "2022.07.21"]
[Round "6.5"]
[White "Firouzja, Alireza"]
[Black "Mamedyarov, Shakhriyar"]
[Result "1-0"]
[ECO "A01"]
[WhiteElo "2793"]
[BlackElo "2759"]
[Annotator "TA"]
[PlyCount "135"]
[EventDate "2022.07.20"]
[EventType "tourn"]
[EventCountry "CRO"]
[SourceTitle "playchess.com"]
[Source "ChessBase"]
[SourceQuality "1"]
[TimeControl "1500+10"]

{[%evp 13,135,11,20,2,15,6,42,14,16,27,43,0,10,12,22,12,31,47,26,31,37,0,3,12,4,0,0,0,0,0,0,0,27,29,30,24,27,23,26,0,0,0,0,-18,-21,-20,0,0,0,-19,-9,-32,0,0,0,0,0,0,0,0,518,506,445,387,522,0,310,359,741,711,717,721,716,722,697,708,630,614,541,0,0,0,0,0,0,0,0,0,45,28,290,292,288,246,250,8,8,0,0,0,8,0,0,0,8,0,8,8,8,8,8,8,29984,29985,29985,29986,29986,29987,29987,29987,29987,29988,29988,29989]} 1. c4 {[%emt 0:00:01]} e5 {[%emt 0:00:10]} 2. g3 {[%emt 0:00:03]} Be7 {[%emt 0:00:04]} 3. Bg2 {[%emt 0:00:14]} f5 {[%emt 0:00:03]} 4. b3 {[%emt 0:00:50]} Nf6 {[%emt 0:00:09]} 5. Bb2 {[%emt 0:00:01]} d6 {[%emt 0:00:02]} 6. e3 {[%emt 0:00:41]} O-O {[%emt 0:00:27]} 7. Ne2 {[%emt 0:00:02]} c6 {[%emt 0:01:12]} 8. O-O {[%emt 0:00:19] A01: Nimzowitsch-Larsen Opening.} Be6 {[%emt 0:00:23]} 9. Nbc3 {[%emt 0:00:25]} Nbd7 {[%emt 0:00:09]} 10. d3 {[%emt 0:00:41] White is slightly better.} Qe8 {[%emt 0:00:41] [#]} 11. Qd2 $146 {[%emt 0:00:41]} ({Predecessor:} 11. d4 Bf7 12. d5 c5 13. Qc1 h6 14. Bh3 Bg6 15. f3 Nh7 16. Qd2 Ng5 17. Bg2 {1-0 (56) Krueger,M (1920)-Doering,M (1818) Berlin 2019}) 11... Kh8 {[%emt 0:01:27]} 12. b4 {[%emt 0:00:05]} Bg8 {[%emt 0:01:04]} 13. b5 {[%emt 0:00:09]} Rc8 {[%emt 0:00:32]} 14. Rab1 {[%emt 0:00:26]} d5 {[%emt 0:03:03]} 15. bxc6 {[%emt 0:00:30]} bxc6 {[%emt 0:00:02]} 16. cxd5 {[%emt 0:00:01]} cxd5 {[%emt 0:00:01]} 17. f4 {[%emt 0:00:01]} e4 {[%emt 0:00:59]} 18. Nd4 {[%emt 0:00:13]} Qh5 {[%emt 0:01:46]} 19. Na4 {[%emt 0:02:04]} Ng4 {[%emt 0:01:55][%csl Gg4][%cal Rh5h2]} 20. h3 {[%emt 0:00:06]} Ngf6 {[%emt 0:00:00]} 21. Rbc1 {[%emt 0:01:44]} Qg6 {[%emt 0:00:05]} 22. Kh2 {[%emt 0:01:19]} exd3 {[%emt 0:00:29]} (22... Nh5 23. Nxf5 $1 Qxf5 24. g4 $14) (22... Rxc1 23. Rxc1 Bd8 24. Bf1 $14) 23. Qxd3 {[%emt 0:00:06]} Ne4 $1 {[%emt 0:00:24]} 24. Bxe4 {[%emt 0:00:25]} fxe4 {[%emt 0:01:46]} 25. Qb5 {[%emt 0:00:17]} Rxc1 {[%emt 0:00:19]} 26. Rxc1 {[%emt 0:00:09]} (26. Bxc1 $5 {[%cal Rb5d7]} Nb6 27. Nxb6 Qxb6 28. Qb3 $11) 26... Ne5 {[%emt 0:00:01]} 27. Qe2 {[%emt 0:03:26]} Nc4 {[%emt 0:00:40]} 28. Ba1 {[%emt 0:01:33]} Qa6 {[%emt 0:00:32]} 29. Nc3 {[%emt 0:00:02][%cal Ba4c3,Bc3d1,Bd1f2,Bf2g4][%mdl 32]} Bf6 {[%emt 0:00:22]} 30. Nd1 {[%emt 0:00:04]} Rb8 {[%emt 0:00:23]} 31. Nf2 {[%emt 0:00:21]} Qa3 {[%emt 0:01:05]} 32. Re1 {[%emt 0:00:25][%cal Bc1e1,Be1b1,Bb1b8][%mdl 32]} Rb6 {[%emt 0:01:56]} 33. Ng4 {[%emt 0:00:14] Pair of Knights!} Be7 {[%emt 0:00:51]} 34. Nf5 {[%emt 0:05:03][%csl Gf5][%cal Ra1g7]} Bf8 {[%emt 0:00:02]} 35. Bd4 {[%emt 0:00:01]} Ra6 {[%emt 0:01:27]} 36. Rb1 {[%emt 0:00:36] And now Rb8 would win.} Qd3 $2 {[%emt 0:00:03][%mdl 8192]} (36... Be6 $11 37. Ngh6 Bxf5 38. Nxf5 Qxa2 39. Qxa2 (39. Bxg7+ $2 Kg8 $19) 39... Rxa2+ 40. Kg1 Nb6) 37. Qxd3 $1 $18 {[%emt 0:01:08]} exd3 {[%emt 0:00:02]} 38. Rb8 $1 {[%emt 0:01:05] White wants to mate with Ngh6.} Rxa2+ {[%emt 0:01:19]} 39. Kh1 $2 {[%emt 0:01:28]} (39. Kg1 $18 {White threatens Ngh6 and mate.} d2 40. Nf2 d1=Q+ 41. Nxd1) 39... Nd6 $2 {[%emt 0:04:46][%mdl 8192]} 40. Nxg7 {[%emt 0:01:19]} (40. Rxf8 Nxf5 41. Rxf5 h6 $16) 40... Nb5 $2 {[%emt 0:00:33] [#]} (40... Bxg7 41. Nh6) (40... Ra4 41. Nh5+ (41. Rxf8 d2 $16) 41... Rxd4 42. exd4 d2) 41. Bf6 $1 {[%emt 0:01:14]} h5 {[%emt 0:00:13]} 42. Nf5+ {[%emt 0:01:08]} ({Weaker is} 42. Rxf8 hxg4 43. Ne6+ (43. hxg4 d2 44. Ne6+ Kh7 45. Ng5+ Kh6 46. Nf7+ Bxf7 47. Rh8+ Kg6 48. f5+ Kxf6 49. Rh6+ Kg5) 43... Kh7 44. Ng5+ Kg6 $14) 42... Kh7 {[%emt 0:00:03]} 43. Rb7+ {[%emt 0:01:11]} (43. Rxf8 hxg4 44. Rxg8 Kxg8 45. Nh6+ Kf8 46. Nxg4 Re2 $19) 43... Bf7 {[%emt 0:00:02]} 44. Rxf7+ {[%emt 0:00:21]} Kg6 {[%emt 0:00:01]} 45. Rxf8 {[%emt 0:00:13] Intending Nh4+ and mate.} Kxf5 {[%emt 0:00:01] [#]} 46. Nh2 {[%emt 0:00:13]} (46. e4+ $1 $18 dxe4 47. Ne3+ Ke6 48. f5+ Kd7 49. Rd8+ Kc7 50. Nd5+ Kb7 51. Be5) 46... d2 $11 {[%emt 0:00:57]} 47. Bc3+ $1 {[%emt 0:00:02]} Ke4 {[%emt 0:00:00]} 48. Bxd2 {[%emt 0:00:07]} Rxd2 {[%emt 0:00:02][%mdl 4096] Endgame KRN-KRN} 49. Re8+ {[%emt 0:00:03]} Kd3 {[%emt 0:00:00]} 50. Nf3 {[%emt 0:00:28]} Rd1+ {[%emt 0:00:18]} 51. Kg2 {[%emt 0:00:06] Threatens to win with g4.} Nd6 $2 {[%emt 0:00:03][%mdl 8192]} (51... Rc1 $11 {and Black has nothing to worry.}) 52. Rd8 {[%emt 0:00:10]} Nc4 {[%emt 0:00:01]} 53. Rxd5+ {[%emt 0:00:07]} Ke4 {[%emt 0:00:01] [#]} 54. Rxd1 $2 {[%emt 0:00:15]} (54. Rxh5 Ra1 55. g4 Nxe3+ 56. Kg3 Nf1+ 57. Kf2 Ra2+ 58. Kxf1 Kxf3 $14) (54. Rc5 $1 $18 {[%cal Rc5c4]} Nxe3+ 55. Kf2) 54... Nxe3+ {[%emt 0:00:01]} 55. Kf2 {[%emt 0:00:00]} Nxd1+ {[%emt 0:00:01] KN-KN} 56. Ke1 {[%emt 0:00:10]} Ne3 {[%emt 0:00:10]} (56... Kxf3 $2 57. Kxd1 Ke4 58. Kc2 $18) 57. Nd2+ {[%emt 0:00:18]} Kd3 {[%emt 0:00:10]} 58. Nb3 {[%emt 0:00:01]} h4 {[%emt 0:01:08]} 59. gxh4 {[%emt 0:00:02]} Ng2+ {[%emt 0:00:03]} 60. Kf2 {[%emt 0:00:01]} Nxh4 {[%emt 0:00:28]} 61. Kg3 {[%emt 0:00:03]} Nf5+ {[%emt 0:00:02]} 62. Kg4 {[%emt 0:00:01]} Nd4 $2 {[%emt 0:00:03][%mdl 8192]} (62... Nh6+ $11 63. Kg5 Nf7+ 64. Kg6 Ke4) 63. Nxd4 {[%emt 0:00:27] White mates.} Kxd4 {[%emt 0:00:01]} 64. f5 {[%emt 0:00:01][%cal Bf4f5,Bf5f6,Bf6f7][%mdl 32]} Ke5 {[%emt 0:00:01]} 65. Kg5 {[%emt 0:00:01]} a5 66. f6 {[%emt 0:00:00]} Ke6 {[%emt 0:00:01]} 67. Kg6 {[%emt 0:00:01]} a4 {[%emt 0:00:00]} 68. f7 {[%emt 0:00:01] Weighted Error Value: White=0.26 (precise) /Black=0.44} 1-0

[Event "Super United Croatia GCT Rapid 2022"]
[Site "Zagreb"]
[Date "2022.07.22"]
[Round "7.1"]
[White "Mamedyarov, Shakhriyar"]
[Black "Vachier-Lagrave, Maxime"]
[Result "0-1"]
[ECO "A31"]
[WhiteElo "2759"]
[BlackElo "2760"]
[Annotator "TA"]
[PlyCount "82"]
[EventDate "2022.07.20"]
[EventType "tourn"]
[EventCountry "CRO"]
[SourceTitle "playchess.com"]
[Source "ChessBase"]
[SourceQuality "1"]
[TimeControl "1500+10"]

{[%evp 9,82,0,0,0,0,0,0,-7,0,0,0,0,0,0,0,0,33,5,11,0,19,20,52,25,18,16,54,43,75,64,149,145,152,153,131,144,148,123,177,161,164,175,163,166,206,106,105,2,2,0,0,18,39,0,0,0,0,0,0,-89,-82,-305,-258,-249,-190,-375,-370,-310,0,-265,-197,-29994,-29995,-29996,-29997]} 1. Nf3 {[%emt 0:00:02]} c5 {[%emt 0:00:15]} 2. c4 {[%emt 0:00:02]} Nc6 {[%emt 0:00:02]} 3. d4 {[%emt 0:00:01]} cxd4 {[%emt 0:00:01]} 4. Nxd4 {[%emt 0:00:01]} Nf6 {[%emt 0:00:02]} 5. g3 {[%emt 0:00:02]} e5 {[%emt 0:00:17]} 6. Nb5 {[%emt 0:00:04] A31: Symmetrical English: 2 Nf3 Nf6 3 d4.} Bb4+ {[%emt 0:00:05]} 7. N1c3 {[%emt 0:00:04]} d6 $1 {[%emt 0:00:22]} 8. a3 {[%emt 0:00:02] The position is equal.} Bxc3+ {[%emt 0:00:01]} 9. Nxc3 {[%emt 0:00:01]} Be6 {[%emt 0:00:09]} 10. Bg5 {[%emt 0:00:03]} Bxc4 {[%emt 0:00:41]} 11. Bxf6 {[%emt 0:00:15]} gxf6 {[%emt 0:00:04]} 12. Bg2 {[%emt 0:00:11] [#]} f5 $146 {[%emt 0:01:05]} ({Predecessor:} 12... Nd4 13. O-O d5 14. Rb1 Rc8 15. f4 O-O 16. Rf2 Bb3 17. Qd2 Kg7 18. fxe5 fxe5 19. Nxd5 Bxd5 {½-½ (19) Van Unen,H (2505)-Lohse,M (2507) ICCF email 2015}) 13. O-O {[%emt 0:00:18][%mdl 1024] White has compensation.} O-O {[%emt 0:00:13]} 14. Qd2 {[%emt 0:02:00]} Qf6 {[%emt 0:00:40]} 15. Rac1 {[%emt 0:01:36]} Rac8 {[%emt 0:05:56]} 16. Nd5 {[%emt 0:01:35]} (16. Ne4 $5 fxe4 17. Rxc4 $11) 16... Bxd5 {[%emt 0:00:02]} 17. Bxd5 {[%emt 0:00:02]} e4 {[%emt 0:00:59]} 18. Rfd1 {[%emt 0:00:28]} Kg7 {[%emt 0:00:37]} 19. b4 {[%emt 0:01:35]} Ne7 {[%emt 0:02:05]} (19... Rfd8 $14) 20. Bxb7 $16 {[%emt 0:00:36]} Rxc1 {[%emt 0:00:05]} 21. Qxc1 {[%emt 0:00:11]} d5 {[%emt 0:01:49]} 22. Bxd5 {[%emt 0:01:06][%cal Bb7d5,Bd5b3,Bb3d1][%mdl 32]} Rc8 {[%emt 0:00:02] Inhibits Qc7.} 23. Qe3 {[%emt 0:02:20]} Rd8 {[%emt 0:00:03]} (23... a6 $16) 24. Bb3 $1 $18 {[%emt 0:00:21]} Rxd1+ 25. Bxd1 {[%emt 0:00:01][%mdl 4096] Endgame KQB-KQN} Qa1 {[%emt 0:00:03]} 26. Qb3 {[%emt 0:01:32]} Nc6 {[%emt 0:00:32]} 27. Qc2 {[%emt 0:00:06]} (27. Kg2 $18) 27... Ne5 $16 {[%emt 0:02:30]} 28. a4 {[%emt 0:00:38]} (28. Kg2 $16) 28... e3 $1 $11 {[%emt 0:00:02]} ({Resist} 28... Qd4 29. Kg2 $14) 29. f3 {[%emt 0:02:40] Against Ng4} f4 {[%emt 0:01:23]} 30. Kg2 {[%emt 0:00:19][%cal Oc2c5]} Ng6 {[%emt 0:00:02]} 31. b5 {[%emt 0:01:43]} h5 {[%emt 0:00:11][%cal Bh7h5,Bh5h4,Bh4h3][%mdl 32]} 32. Qd3 {[%emt 0:01:23]} h4 {[%emt 0:01:56]} 33. g4 {[%emt 0:00:45] Black must now prevent Kh3.} h3+ {[%emt 0:00:01]} 34. Kf1 {[%emt 0:01:25] [#]} (34. Kxh3 $11 Qf6 35. g5 (35. Kg2 Qh4 $17) 35... Qxg5 36. Qc3+ (36. Qd4+ $2 Kh6 $19) 36... Kh6 37. Qe1) 34... Nf8 $1 $17 {[%emt 0:02:57] Black is more active.} 35. a5 $2 {[%emt 0:02:58]} (35. Qb3 $17) 35... Qxa5 $19 {[%emt 0:00:11]} 36. Qd4+ {[%emt 0:00:02]} Kg8 {[%emt 0:00:02]} 37. Qxf4 $2 {[%emt 0:00:02]} (37. b6 axb6 38. Qxf4) 37... Qd2 {[%emt 0:00:01][%cal Rd2d1]} 38. Qa4 {[%emt 0:00:01]} Qd6 $2 {[%emt 0:00:26]} ({Black should play} 38... Ng6 $19 {Strongly threatening ...Ne5.} 39. b6 axb6) 39. Kg1 $2 {[%emt 0:00:13][%mdl 8192]} (39. Bb3 $1 $11 {and White stays safe.}) 39... Ne6 {[%emt 0:02:08] ( -> ...Qd8)} 40. Qc2 $2 {[%emt 0:00:02]} (40. Qb3 $19) 40... Qd8 {[%emt 0:00:13]} 41. Kf1 {[%emt 0:00:32] [#]} Qh4 $1 {[%emt 0:00:06] What a bad dream for White.  Weighted Error Value: White=0.54/Black=0.15 (very precise)} 0-1

[Event "Super United Croatia GCT Rapid 2022"]
[Site "Zagreb"]
[Date "2022.07.22"]
[Round "7.2"]
[White "Dominguez Perez, Leinier"]
[Black "Firouzja, Alireza"]
[Result "1/2-1/2"]
[ECO "C54"]
[WhiteElo "2754"]
[BlackElo "2793"]
[Annotator "TA"]
[PlyCount "107"]
[EventDate "2022.07.20"]
[EventType "tourn"]
[EventCountry "CRO"]
[SourceTitle "playchess.com"]
[Source "ChessBase"]
[SourceQuality "1"]
[TimeControl "1500+10"]

{[%evp 12,107,29,5,12,14,23,9,0,0,0,0,0,11,0,6,29,20,16,33,37,14,23,32,45,76,67,33,29,16,37,37,56,81,59,61,77,23,35,31,9,8,38,-14,0,-26,0,0,0,-134,-29,-36,-10,-18,68,85,92,59,75,35,78,58,34,14,83,81,92,61,89,47,56,51,83,75,82,15,14,14,12,16,17,12,14,6,10,9,52,0,0,0,0,0,0,0,7,0,0,0]} 1. e4 {[%emt 0:00:03]} e5 {[%emt 0:00:01]} 2. Nf3 {[%emt 0:00:06]} Nc6 {[%emt 0:00:01]} 3. Bc4 {[%emt 0:00:04]} Nf6 {[%emt 0:00:02]} 4. d3 {[%emt 0:00:02]} Bc5 {[%emt 0:00:02]} 5. O-O {[%emt 0:00:03]} d6 {[%emt 0:00:03]} 6. c3 {[%emt 0:00:02]} O-O {[%emt 0:00:02]} 7. Re1 {[%emt 0:00:15]} a5 {[%emt 0:00:02] C54: Giuoco Piano: 4 c3 Nf6, main lines with 5 d4 and 5 d3.} 8. h3 {[%emt 0:00:04]} Ba7 {[%emt 0:00:03]} 9. Na3 {[%emt 0:00:12] [#]} Ne7 $146 {[%emt 0:00:03]} ({Predecessor:} 9... Be6 10. Bg5 h6 11. Bh4 g5 12. Bg3 Nh5 13. Kh2 Qf6 14. Nb5 Bb6 15. b3 Rad8 {1-0 (34) Eljanov,P (2691)-Hovhannisyan,R (2622) Riga 2021}) 10. d4 {[%emt 0:00:34]} Ng6 {[%emt 0:00:03]} 11. Be3 {[%emt 0:00:02]} Bd7 {[%emt 0:01:29]} 12. Bd3 {[%emt 0:01:16]} c6 {[%emt 0:01:04]} 13. Nc4 {[%emt 0:03:49][%csl LRd6,LRe5]} exd4 {[%emt 0:00:31]} 14. cxd4 {[%emt 0:02:57]} d5 {[%emt 0:00:07]} 15. exd5 {[%emt 0:00:02]} Nxd5 {[%emt 0:00:01]} 16. Bd2 {[%emt 0:03:40]} Bb8 {[%emt 0:00:55]} 17. Nce5 {[%emt 0:00:26]} Bxe5 {[%emt 0:02:43]} 18. dxe5 {[%emt 0:00:38]} Ndf4 {[%emt 0:00:14]} 19. Bc2 {[%emt 0:01:43]} Be6 {[%emt 0:00:12]} 20. Re4 {[%emt 0:00:37]} Nd5 {[%emt 0:00:44]} 21. Nd4 {[%emt 0:00:40]} c5 {[%emt 0:01:42]} 22. Nxe6 {[%emt 0:01:37]} fxe6 {[%emt 0:00:01]} 23. Qg4 {[%emt 0:01:29] Inhibits Ndf4.} Qb6 {[%emt 0:01:08]} 24. Rae1 {[%emt 0:00:55]} (24. Rc4 $16) 24... Nge7 $11 {[%emt 0:01:16]} (24... c4 25. R1e2 $16) 25. Bg5 {[%emt 0:02:37] This bishop pair is nice.} Nf5 {[%emt 0:00:56]} 26. b3 {[%emt 0:01:07]} Rf7 {[%emt 0:01:46]} 27. Qh5 {[%emt 0:01:11]} (27. Rc4 $14) 27... Raf8 {[%emt 0:00:30]} 28. Rg4 {[%emt 0:00:18]} ({Not} 28. Rh4 $2 g6 29. Qd1 Nxh4 30. Bxh4 Rf4 $19) 28... g6 {[%emt 0:05:08]} 29. Bc1 {[%emt 0:00:52]} c4 {[%emt 0:01:19] [#] aiming for ...Ng7.} 30. Rf1 {[%emt 0:01:17]} ({Don't go for} 30. bxc4 $2 Ng7 31. Qh4 Rxf2 $19) (30. Bxf5 $11 Rxf5 31. Rxg6+ Kh8 32. Qh4) 30... cxb3 {[%emt 0:00:45]} (30... c3 $17 31. Qg5 Qa6) 31. Bxb3 {[%emt 0:00:29]} Qc5 {[%emt 0:01:07]} 32. Qg5 {[%emt 0:00:46]} Ng7 {[%emt 0:00:23]} ({Better is} 32... b5 $11) 33. Rc4 $14 {[%emt 0:00:21]} Qa7 {[%emt 0:00:28][%cal Rf7f2]} 34. Rc2 {[%emt 0:00:11]} b5 {[%emt 0:03:00]} 35. Qg4 {[%emt 0:00:09]} (35. Bxd5 $5 exd5 36. Qe3 $14) 35... Rf5 {[%emt 0:00:16]} 36. Bxd5 {[%emt 0:00:22]} (36. Qe4 $5 {[%cal Rb3d5]}) 36... exd5 {[%emt 0:00:02]} 37. Be3 {[%emt 0:00:12]} (37. Qe2 $5 {[%cal Re2b5]}) 37... Qf7 {[%emt 0:00:06]} (37... Qd7 $11) 38. Qd4 $16 {[%emt 0:00:11] 0x0.0020559b91a8dp-1022s more active pieces.} Qe6 {[%emt 0:00:40]} 39. f4 {[%emt 0:00:07] Hoping for g4.} R5f7 {[%emt 0:00:12]} 40. Rc5 {[%emt 0:00:10]} Nf5 {[%emt 0:00:04]} 41. Qd3 {[%emt 0:00:01]} g5 {[%emt 0:00:35]} 42. Bd2 {[%emt 0:00:04]} Ne7 {[%emt 0:00:09][%cal Rg5f4]} 43. f5 {[%emt 0:00:25]} (43. Rxb5 $16 {Black must now prevent Qg3.} gxf4 44. Bxa5) 43... Rxf5 $11 {[%emt 0:01:30]} 44. Rxf5 {[%emt 0:00:00]} Qxf5 {[%emt 0:00:34]} (44... Rxf5 {with more complications.} 45. Rxb5 Qxe5 46. a4 Qa1+) 45. Qxf5 {[%emt 0:00:11]} Rxf5 {[%emt 0:00:01]} 46. Rxb5 {[%emt 0:00:09] e6 is the strong threat.} Rxe5 {[%emt 0:00:02]} 47. Rxa5 {[%emt 0:00:14][%mdl 4096] Endgame KRB-KRN} h6 {[%emt 0:00:09]} 48. Kf1 {[%emt 0:00:18]} Nf5 {[%emt 0:00:06]} 49. Ra3 {[%emt 0:00:08]} ({Don't play} 49. Bc3 Ng3+ 50. Kf2 Ne4+ 51. Ke3 Nxc3+ $11) (49. a4 $14) 49... Re4 {[%emt 0:00:25] The position is equal.} 50. Rd3 {[%emt 0:00:03]} Ra4 {[%emt 0:00:09]} 51. a3 {[%emt 0:00:16]} Nd4 {[%emt 0:00:11]} 52. Bb4 {[%emt 0:00:09]} Nc6 {[%emt 0:00:07]} 53. Rxd5 {[%emt 0:00:11]} Nxb4 {[%emt 0:00:01]} 54. axb4 {[%emt 0:00:01] Weighted Error Value: White=0.18 (very precise) /Black=0.16 (very precise)} 1/2-1/2